bitfinex/quotes_SOLUSD_20251208
["timestamp","ask_amount","ask_price","bid_price","bid_amount"]
[1765184444464,0.1,136.9,136.89,29.60668978]
[1765184444782,8.18,136.9,136.89,31.0516884]
[1765184446193,0.1,136.9,136.89,31.0516884]
[1765184446391,8.18,136.9,136.89,31.0516884]
[1765184447267,8.18,136.9,136.89,30.3316884]
[1765184447762,8.18,136.9,136.89,31.0516884]
[1765184449390,8.18,136.9,136.89,30.3316884]
[1765184450670,8.18,136.9,136.89,31.0516884]
[1765184451573,8.18,136.9,136.89,30.3316884]
[1765184453907,0.1,136.9,136.89,30.3316884]
[1765184454406,8.18,136.9,136.89,30.3316884]
[1765184454605,8.87,136.9,136.89,30.3316884]
[1765184454783,8.87,136.9,136.89,16.11508043]
[1765184454984,8.87,136.9,136.87,12.21372399]
[1765184455289,0.69,136.89,136.88,8.80994492]
[1765184455920,0.69,136.89,136.87,8.80994492]
[1765184456205,0.69,136.89,136.87,16.11609048]
[1765184457509,0.69,136.89,136.87,20.14981447]
[1765184457709,8.08,136.88,136.87,20.14981447]
[1765184457887,8.08,136.88,136.87,12.84366891]
[1765184458088,8.77,136.88,136.87,12.84366891]
[1765184458285,0.1,136.9,136.87,12.84366891]
[1765184458608,8.08,136.89,136.87,20.14987187]
[1765184459085,0.69,136.88,136.87,20.14987187]
[1765184460478,8.08,136.89,136.87,20.14987187]
[1765184460479,8.77,136.89,136.87,20.14987187]
[1765184460677,8.77,136.89,136.88,11.33939318]
[1765184460678,0.69,136.89,136.88,11.33939318]
[1765184460907,8.08,136.89,136.88,11.33939318]
[1765184461099,0.79,136.9,136.89,8.80994492]
[1765184461300,0.79,136.9,136.89,12.84366891]
[1765184461491,8.87,136.9,136.89,12.84366891]
[1765184463115,0.1,136.9,136.89,20.14880442]
[1765184463412,0.1,136.95,136.93,8.80994492]
[1765184463590,8.08,136.94,136.93,18.9928289]
[1765184464190,0.1,136.95,136.93,18.9928289]
[1765184464416,8.08,136.94,136.93,18.9928289]
[1765184464617,8.08,136.94,136.93,27.00583043]
[1765184464788,0.1,136.95,136.93,27.00583043]
[1765184464789,0.1,136.95,136.93,31.03955442]
[1765184464994,0.1,136.95,136.94,40.04541689]
[1765184465319,8.18,136.95,136.94,40.04541689]
[1765184465889,8.18,136.95,136.94,55.52788512]
[1765184467610,0.1,136.95,136.94,46.63788512]
[1765184467814,8.18,136.95,136.94,46.63788512]
[1765184468019,8.18,136.95,136.94,54.81788512]
[1765184468599,0.1,136.95,136.94,55.52788512]
[1765184468922,8.18,136.95,136.94,55.52788512]
[1765184469105,0.1,136.95,136.94,54.81788512]
[1765184469306,8.18,136.95,136.94,54.81788512]
[1765184469495,8.18,136.95,136.94,46.63788512]
[1765184469812,0.1,136.95,136.94,55.52788512]
[1765184470120,8.18,136.95,136.94,55.52788512]
[1765184470614,0.1,136.95,136.94,55.52788512]
[1765184470925,8.18,136.95,136.94,55.52788512]
[1765184471794,8.18,136.95,136.94,54.81788512]
[1765184472007,8.85,136.95,136.94,46.63788512]
[1765184472395,8.18,136.95,136.94,46.63788512]
[1765184474223,8.85,136.95,136.94,46.63788512]
[1765184475826,8.18,136.95,136.94,46.63788512]
[1765184481636,0.1,136.95,136.94,47.30788512]
[1765184481805,8.16,136.95,136.94,47.30788512]
[1765184482529,8.16,136.95,136.94,50.23025954]
[1765184482724,0.1,136.95,136.94,50.23025954]
[1765184482932,8.16,136.95,136.94,49.56025954]
[1765184483139,8.82,136.95,136.94,46.63788512]
[1765184483945,8.16,136.95,136.94,46.63788512]
[1765184484445,8.82,136.95,136.94,46.63788512]
[1765184484633,8.16,136.95,136.94,46.63788512]
[1765184485851,8.82,136.95,136.94,46.63788512]
[1765184486144,8.16,136.95,136.94,47.13788512]
[1765184486316,0.1,136.95,136.94,47.80788512]
[1765184486517,8.16,136.95,136.94,47.13788512]
[1765184486740,8.82,136.95,136.94,47.13788512]
[1765184487949,8.16,136.95,136.94,47.13788512]
[1765184488323,0.76,136.95,136.94,47.13788512]
[1765184488522,0.1,136.95,136.94,47.13788512]
[1765184488740,8.16,136.95,136.94,47.13788512]
[1765184489054,8.82,136.95,136.94,47.13788512]
[1765184489350,8.16,136.95,136.94,47.13788512]
[1765184489550,0.1,136.95,136.94,47.13788512]
[1765184489851,8.16,136.95,136.94,47.13788512]
[1765184491247,8.16,136.95,136.94,47.80788512]
[1765184491758,1e-08,136.95,136.94,31.49902112]
[1765184492136,1e-08,136.95,136.94,39.65902112]
[1765184492949,0.1,136.98,136.97,29.15253291]
[1765184493266,8.16,136.98,136.97,29.15253291]
[1765184494641,8.82,136.98,136.97,29.15253291]
[1765184494842,0.76,136.98,136.97,36.45340171]
[1765184495043,0.1,136.98,136.97,36.45340171]
[1765184495247,8.16,136.98,136.97,36.45340171]
[1765184496933,0.1,136.98,136.97,37.12340171]
[1765184497137,0.1,137.02,137.01,25.11880892]
[1765184497367,0.1,137.02,137.01,29.15253291]
[1765184497538,8.16,137.02,137.01,29.82253291]
[1765184497737,0.1,137.09,137.06,8.80994492]
[1765184497941,0.05029734,137.12,137.11,25.11880892]
[1765184498159,8.08,137.18,137.16,8.80994492]
[1765184498456,8.08,137.18,137.14,4.03372399]
[1765184498457,8.1,137.17,137.14,4.03372399]
[1765184498664,0.66,137.17,137.16,4.03372399]
[1765184498865,3.19008774,137.19,137.16,4.03372399]
[1765184499070,3.85008774,137.19,137.16,16.10030806]
[1765184499370,3.85008774,137.19,137.18,25.11880892]
[1765184499555,3.19008774,137.19,137.18,25.11880892]
[1765184499756,3.19008774,137.19,137.15,8.80994492]
[1765184499948,10.47924875,137.19,137.15,8.80994492]
[1765184500148,0.66,137.18,137.15,8.80994492]
[1765184500749,0.66,137.18,137.13,12.84366891]
[1765184501062,7.2902238,137.17,137.13,8.80994492]
[1765184501565,0.66,137.16,137.13,12.84366891]
[1765184501766,0.66,137.16,137.13,8.80994492]
[1765184501980,0.66,137.16,137.13,16.1022125]
[1765184502143,3.19008774,137.19,137.15,4.03372399]
[1765184502459,8.76,137.18,137.15,4.03372399]
[1765184502660,4.03372399,137.17,137.13,8.80994492]
[1765184502847,4.69372399,137.17,137.13,8.80994492]
[1765184503169,0.66,137.16,137.13,8.80994492]
[1765184503371,0.66,137.16,137.13,12.84366891]
[1765184504071,8.1,137.15,137.13,12.84366891]
[1765184504378,8.1,137.15,137.13,20.13582816]
[1765184504575,8.76,137.15,137.13,20.13582816]
[1765184504771,0.66,137.18,137.15,8.80994492]
[1765184505070,8.76,137.17,137.15,12.84366891]
[1765184505255,8.76,137.17,137.15,8.80994492]
[1765184505458,0.66,137.16,137.15,8.80994492]
[1765184506377,8.76,137.16,137.15,8.80994492]
[1765184507065,8.76,137.16,137.15,11.38272363]
[1765184507270,0.66,137.16,137.15,8.80994492]
[1765184507452,8.74,137.16,137.15,8.80994492]
[1765184507654,8.74,137.16,137.15,18.67401054]
[1765184508388,8.74,137.16,137.15,16.308864]
[1765184509369,8.74,137.16,137.15,25.11880892]
[1765184509673,8.74,137.16,137.15,8.80994492]
[1765184511081,16.03105777,137.16,137.11,2.57277871]
[1765184511390,3.27277871,137.15,137.1,7.29353244]
[1765184511698,2.57277871,137.11,137.06,7.29607093]
[1765184511874,8.08,137.1,137.06,9.86884964]
[1765184512079,8.08,137.09,137.07,2.57277871]
[1765184512286,0.7,137.11,137.07,2.57277871]
[1765184512469,8.08,137.1,137.08,2.57277871]
[1765184512677,8.08,137.1,137.07,2.57277871]
[1765184512869,0.7,137.09,137.07,2.57277871]
[1765184513383,8.08,137.1,137.08,18.67773384]
[1765184513614,0.7,137.1,137.08,16.10495513]
[1765184513816,8.08,137.09,137.08,16.10495513]
[1765184514120,8.08,137.09,137.08,18.67773384]
[1765184517514,8.08,137.09,137.08,16.10495513]
[1765184517814,8.08,137.09,137.08,18.67773384]
[1765184518215,0.7,137.11,137.08,36.91525937]
[1765184518418,0.69,137.16,137.11,8.80994492]
[1765184518605,8.08,137.15,137.12,2.57277871]
[1765184518788,8.08,137.14,137.13,6.12722832]
[1765184519119,0.69,137.15,137.13,6.12722832]
[1765184519304,8.08,137.14,137.13,6.12722832]
[1765184519704,8.77,137.14,137.13,8.80994492]
[1765184520095,8.77,137.14,137.13,14.93717324]
[1765184520316,8.08,137.14,137.13,14.93717324]
[1765184520920,8.08,137.14,137.13,22.22952356]
[1765184521088,0.69,137.15,137.13,22.22952356]
[1765184521293,0.69,137.15,137.14,6.12722832]
[1765184521493,8.77,137.15,137.13,22.22952356]
[1765184522929,0.69,137.15,137.13,22.22952356]
[1765184523100,8.08,137.14,137.13,22.22952356]
[1765184523592,0.69,137.16,137.13,22.22952356]
[1765184523797,8.08,137.14,137.13,22.22952356]
[1765184524420,0.69,137.18,137.13,22.91952356]
[1765184524639,3.19008774,137.19,137.18,8.80994492]
[1765184524920,0.1,137.32,137.19,9.71046969]
[1765184525230,75.0,137.42,137.19,9.71046969]
[1765184525231,0.69,137.39,137.31,6.12722832]
[1765184525436,22.24228277,137.47,137.36,6.12722832]
[1765184525437,0.69,137.42,137.36,6.12722832]
[1765184525645,8.1,137.41,137.33,25.11880892]
[1765184525923,7.27378527,137.48,137.36,6.12722832]
[1765184526109,6.32,137.47,137.4,16.308864]
[1765184526434,6.32,137.47,137.41,7.27749072]
[1765184526435,8.1,137.46,137.41,7.27749072]
[1765184526594,84.4123249,137.51,137.42,8.80994492]
[1765184526801,8.79,137.5,137.42,8.80994492]
[1765184527136,8.79,137.5,137.47,6.12722832]
[1765184527430,8.79,137.5,137.42,25.11880892]
[1765184527431,0.69,137.49,137.44,8.80994492]
[1765184527620,8.81,137.49,137.43,8.80994492]
[1765184528119,0.69,137.48,137.44,6.12722832]
[1765184528421,8.12,137.49,137.44,0.69]
[1765184528644,99.34955322,137.51,137.47,16.308864]
[1765184528947,99.34955322,137.51,137.45,0.69]
[1765184528948,0.69,137.5,137.49,14.93717324]
[1765184529115,92.5323249,137.51,137.47,8.80994492]
[1765184529322,0.69,137.5,137.44,8.80994492]
[1765184529845,0.69,137.5,137.4,25.11880892]
[1765184530028,6.12722832,137.45,137.4,8.80994492]
[1765184530231,14.26722832,137.44,137.39,6.12722832]
[1765184530422,7.96447265,137.47,137.42,6.12722832]
[1765184530741,8.14,137.46,137.42,6.12722832]
[1765184530946,8.83,137.46,137.43,6.12722832]
[1765184531147,0.69,137.45,137.42,6.12722832]
[1765184531346,0.69,137.45,137.43,14.93717324]
[1765184531531,0.69,137.45,137.4,8.80994492]
[1765184531737,8.14,137.44,137.41,6.12722832]
[1765184531923,102.59331723,137.51,137.43,14.93717324]
[1765184532123,0.69,137.47,137.45,6.12722832]
[1765184532424,0.69,137.47,137.45,14.93717324]
[1765184532626,84.4123249,137.51,137.46,14.93717324]
[1765184532821,84.4123249,137.51,137.45,24.27418215]
[1765184532822,84.4123249,137.51,137.5,14.93717324]
[1765184533042,85.1023249,137.51,137.5,14.93717324]
[1765184533252,85.1023249,137.51,137.5,8.80994492]
[1765184533427,93.2423249,137.51,137.5,6.12722832]
[1765184533618,93.2423249,137.51,137.49,22.43609232]
[1765184533829,0.69,137.5,137.48,6.12722832]
[1765184534026,0.69,137.5,137.45,6.12722832]
[1765184534322,0.69,137.5,137.46,6.12722832]
[1765184534648,7.96276937,137.5,137.46,6.12722832]
[1765184534830,8.14,137.49,137.46,6.12722832]
[1765184535027,84.4123249,137.51,137.49,8.80994492]
[1765184535345,84.4123249,137.51,137.5,14.93717324]
[1765184535736,85.1023249,137.51,137.49,6.12722832]
[1765184535934,0.69,137.5,137.49,6.12722832]
[1765184536160,0.69,137.5,137.47,16.308864]
[1765184536332,7.96277645,137.5,137.46,6.12722832]
[1765184536532,14.09000477,137.5,137.45,8.80994492]
[1765184536859,8.83,137.49,137.45,6.12722832]
[1765184537235,0.69,137.48,137.43,7.27641997]
[1765184537429,0.69,137.48,137.47,14.93717324]
[1765184537630,91.68457192,137.51,137.47,14.93717324]
[1765184537631,91.68454621,137.51,137.47,6.12722832]
[1765184537830,8.14,137.5,137.46,6.12722832]
[1765184538056,8.14,137.5,137.44,14.93717324]
[1765184538057,14.26722832,137.5,137.44,14.93717324]
[1765184538253,0.69,137.49,137.47,6.12722832]
[1765184538455,8.85,137.49,137.48,6.12722832]
[1765184538654,8.85,137.49,137.46,8.80994492]
[1765184538831,8.85,137.49,137.45,6.12722832]
[1765184538832,0.69,137.48,137.45,6.12722832]
[1765184539027,0.69,137.48,137.45,8.80994492]
[1765184539429,0.69,137.48,137.44,8.80994492]
[1765184539652,0.69,137.48,137.44,14.93717324]
[1765184539871,0.69,137.48,137.43,6.12722832]
[1765184539872,6.81722832,137.48,137.43,6.12722832]
[1765184540256,0.69,137.47,137.43,6.12722832]
[1765184540453,8.16,137.46,137.45,6.12722832]
[1765184540654,8.16,137.46,137.45,14.93717324]
[1765184540844,97.81184984,137.51,137.46,8.80994492]
[1765184541050,14.28722832,137.5,137.45,6.12722832]
[1765184541250,6.12722832,137.48,137.43,6.12722832]
[1765184541546,14.28722832,137.47,137.42,14.93717324]
[1765184541754,6.12722832,137.47,137.42,14.93717324]
[1765184542061,109.86511748,137.51,137.37,24.64764293]
[1765184542062,14.95722832,137.46,137.37,24.64764293]
[1765184542237,6.12722832,137.44,137.4,8.80994492]
[1765184542446,7.27590221,137.44,137.4,8.80994492]
[1765184542651,6.79722832,137.43,137.38,22.43609232]
[1765184542858,6.79722832,137.43,137.37,6.12722832]
[1765184543162,6.79722832,137.42,137.38,8.80994492]
[1765184543459,8.16,137.41,137.4,0.99999999]
[1765184544572,7.27802037,137.4,137.36,8.80994492]
[1765184544772,6.12722832,137.38,137.36,8.80994492]
[1765184544973,8.16,137.37,137.36,8.80994492]
[1765184545593,8.16,137.37,137.35,0.99999999]
[1765184546150,8.16,137.37,137.35,9.80994491]
[1765184546358,8.83,137.37,137.35,9.80994491]
[1765184546557,8.83,137.37,137.35,0.99999999]
[1765184546781,8.83,137.37,137.34,0.12999999]
[1765184546782,6.79722832,137.36,137.34,0.12999999]
[1765184547082,6.79722832,137.36,137.29,0.12999999]
[1765184547083,6.12722832,137.35,137.29,0.12999999]
[1765184547284,6.12722832,137.35,137.27,6.12722832]
[1765184547285,6.12722832,137.31,137.27,0.12999999]
[1765184547467,8.16,137.3,137.27,0.12999999]
[1765184547779,6.12722832,137.29,137.27,0.12999999]
[1765184547984,6.12722832,137.31,137.27,0.12999999]
[1765184548149,0.57,137.33,137.27,6.25722831]
[1765184548150,8.16,137.28,137.27,6.25722831]
[1765184548349,8.16,137.28,137.27,6.12722832]
[1765184548578,13.9794246,137.33,137.29,0.12999999]
[1765184548758,8.16,137.32,137.29,0.12999999]
[1765184549170,7.28219628,137.33,137.29,6.12722832]
[1765184549367,8.16,137.32,137.3,0.12999999]
[1765184549577,14.28722832,137.32,137.29,0.12999999]
[1765184549765,14.28722832,137.32,137.28,0.12999999]
[1765184549966,6.69722832,137.33,137.3,0.12999999]
[1765184550166,8.16,137.32,137.3,0.12999999]
[1765184550854,6.12722832,137.4,137.34,0.12999999]
[1765184551057,0.57,137.42,137.35,6.12722832]
[1765184551376,6.12722832,137.38,137.34,0.12999999]
[1765184551574,14.28722832,137.37,137.34,0.12999999]
[1765184551776,14.28722832,137.37,137.33,0.12999999]
[1765184551976,14.28722832,137.37,137.34,0.12999999]
[1765184552161,8.73,137.37,137.34,0.12999999]
[1765184552677,7.2789728,137.39,137.35,6.12722832]
[1765184552884,8.16,137.38,137.35,6.25722831]
[1765184553298,7.27749072,137.41,137.36,6.12722832]
[1765184553587,7.27749072,137.41,137.35,0.12999999]
[1765184553588,8.16,137.4,137.37,6.25722831]
[1765184553759,8.16,137.4,137.37,0.12999999]
[1765184554080,6.69722832,137.39,137.35,0.12999999]
[1765184554281,6.69722832,137.39,137.33,16.308864]
[1765184554282,8.16,137.38,137.36,0.12999999]
[1765184555083,7.27855609,137.39,137.36,0.12999999]
[1765184555403,8.16,137.38,137.37,6.25722831]
[1765184556398,6.12722832,137.41,137.37,0.12999999]
[1765184556688,7.27855011,137.39,137.36,0.12999999]
[1765184557266,7.27855011,137.39,137.35,6.12722832]
[1765184557267,8.16,137.38,137.37,0.12999999]
[1765184557887,8.16,137.38,137.35,6.25722831]
[1765184558295,8.16,137.38,137.36,0.12999999]
[1765184558466,6.69722832,137.37,137.32,0.12999999]
[1765184558675,6.12722832,137.35,137.32,0.12999999]
[1765184558880,8.16,137.34,137.32,0.12999999]
[1765184559090,8.16,137.34,137.31,0.12999999]
[1765184559274,14.28722832,137.34,137.29,15.06717323]
[1765184559468,31.60771753,137.36,137.32,0.12999999]
[1765184559792,0.57,137.41,137.34,6.12722832]
[1765184559976,6.12722832,137.42,137.37,0.12999999]
[1765184560181,8.16,137.41,137.37,0.12999999]
[1765184560366,6.12722832,137.4,137.37,0.12999999]
[1765184560568,14.28722832,137.41,137.37,0.12999999]
[1765184560889,14.28722832,137.41,137.36,5.67822831]
[1765184560890,21.565011,137.41,137.36,5.67822831]
[1765184561065,6.12722832,137.37,137.33,8.80994492]
[1765184561269,0.57,137.4,137.34,5.22958918]
[1765184561588,6.12722832,137.38,137.33,16.308864]
[1765184561779,6.12722832,137.38,137.32,8.80994492]
[1765184561965,6.12722832,137.38,137.33,5.2299905]
[1765184562171,6.12722832,137.38,137.32,22.21932204]
[1765184562383,6.12722832,137.35,137.33,5.23824619]
[1765184562588,8.16,137.34,137.31,6.12722832]
[1765184562975,7.28044073,137.36,137.31,6.12722832]
[1765184563175,8.16,137.35,137.32,12.0375815]
[1765184563474,8.16,137.35,137.33,5.24035318]
[1765184563795,8.16,137.35,137.32,6.12722832]
[1765184563972,8.16,137.34,137.33,5.24865861]
[1765184564389,8.16,137.34,137.33,5.91865861]
[1765184565171,8.16,137.34,137.33,5.24865861]
[1765184565394,14.28722832,137.34,137.33,5.24865861]
[1765184565703,14.28722832,137.34,137.28,6.12722832]
[1765184565704,14.85722832,137.34,137.25,13.41306422]
[1765184565871,14.85722832,137.34,137.26,5.2619215]
[1765184565872,6.12722832,137.29,137.26,5.2619215]
[1765184566221,8.16,137.28,137.27,5.2619215]
[1765184566509,14.28722832,137.28,137.22,13.41466932]
[1765184566709,8.16,137.28,137.23,34.91733426]
[1765184566917,8.16,137.28,137.24,0.67]
[1765184567294,8.16,137.28,137.24,11.32157789]
[1765184567503,26.09603284,137.28,137.23,10.65157789]
[1765184567811,26.09603284,137.28,137.24,0.67]
[1765184568016,10.65157789,137.26,137.21,10.65157789]
[1765184568217,10.65157789,137.25,137.2,20.13152281]
[1765184568399,8.16,137.24,137.2,0.67]
[1765184568598,18.81157789,137.24,137.19,10.65157789]
[1765184568814,7.28703636,137.23,137.19,10.65157789]
[1765184569002,17.93861425,137.23,137.17,18.61169024]
[1765184569305,10.65157789,137.21,137.17,0.67]
[1765184569795,8.16,137.2,137.17,0.67]
[1765184570190,52.735533,137.27,137.2,8.80994492]
[1765184570191,11.22157789,137.27,137.2,8.80994492]
[1765184570405,8.16,137.26,137.21,10.65157789]
[1765184570601,8.16,137.26,137.21,11.32157789]
[1765184570802,15.44554621,137.26,137.21,11.32157789]
[1765184571006,28.86445727,137.27,137.22,0.68]
[1765184571007,8.16,137.25,137.22,0.68]
[1765184571210,8.16,137.25,137.2,8.80994492]
[1765184571211,18.81157789,137.25,137.2,8.80994492]
[1765184571395,19.38157789,137.25,137.2,0.68]
[1765184571701,18.81157789,137.25,137.2,0.68]
[1765184571899,10.65157789,137.27,137.21,10.65157789]
[1765184572114,7.28438228,137.28,137.23,10.65157789]
[1765184572420,8.16,137.26,137.22,20.14152281]
[1765184572713,7.28438228,137.28,137.23,11.33157789]
[1765184572904,18.50277783,137.34,137.27,10.65157789]
[1765184573087,26.36482486,137.33,137.28,10.65157789]
[1765184573618,26.36482486,137.33,137.26,0.68]
[1765184573619,26.93482486,137.33,137.26,0.68]
[1765184573833,26.93482486,137.33,137.28,10.65157789]
[1765184574132,18.77482486,137.33,137.28,10.65157789]
[1765184574305,17.93277783,137.34,137.29,11.33157789]
[1765184574633,8.16,137.33,137.29,11.33157789]
[1765184574933,8.16,137.33,137.25,16.09584289]
[1765184574934,7.28226041,137.32,137.28,10.65157789]
[1765184575305,7.28226041,137.32,137.28,0.68]
[1765184575625,7.28226041,137.32,137.27,10.65157789]
[1765184575819,7.28226041,137.32,137.28,0.68]
[1765184576132,7.28226041,137.32,137.28,11.33157789]
[1765184576331,7.28226041,137.32,137.28,10.65157789]
[1765184576535,7.28226041,137.32,137.28,11.33157789]
[1765184577333,11.22157789,137.31,137.25,10.65157789]
[1765184577629,11.22157789,137.31,137.22,18.21847344]
[1765184577630,10.65157789,137.28,137.23,19.46152281]
[1765184577828,8.16,137.27,137.23,11.33157789]
[1765184578005,19.38157789,137.27,137.21,19.46152281]
[1765184578201,18.81157789,137.27,137.22,0.68]
[1765184578813,18.81157789,137.27,137.22,10.65157789]
[1765184579014,11.22157789,137.26,137.21,10.65157789]
[1765184579306,11.22157789,137.26,137.2,0.68]
[1765184579307,7.28650539,137.24,137.2,0.68]
[1765184579502,7.28650539,137.24,137.2,11.33157789]
[1765184579503,8.16,137.23,137.2,11.33157789]
[1765184580114,8.16,137.23,137.2,0.68]
[1765184580315,18.81157789,137.23,137.18,10.65157789]
[1765184580514,8.16,137.23,137.19,0.68]
[1765184580836,8.16,137.22,137.2,10.65157789]
[1765184581014,8.16,137.22,137.19,10.65157789]
[1765184581218,8.16,137.22,137.18,19.46152281]
[1765184581426,15.447684,137.22,137.19,0.68]
[1765184581625,10.65157789,137.25,137.2,10.65157789]
[1765184581826,8.16,137.24,137.2,10.65157789]
[1765184582029,10.65157789,137.23,137.19,0.68]
[1765184582252,18.81157789,137.24,137.18,19.46152281]
[1765184582451,18.81157789,137.24,137.17,11.33157789]
[1765184582452,10.65157789,137.22,137.17,11.33157789]
[1765184582748,8.16,137.21,137.17,10.65157789]
[1765184583051,25.49957798,137.26,137.2,8.80994492]
[1765184583052,7.28544368,137.26,137.2,8.80994492]
[1765184583236,7.28544368,137.26,137.21,17.93967642]
[1765184583237,8.16,137.25,137.21,17.93967642]
[1765184583548,8.16,137.25,137.22,10.65157789]
[1765184583850,15.44606895,137.25,137.22,0.68]
[1765184584023,15.44606895,137.25,137.18,8.80994492]
[1765184584024,10.65157789,137.23,137.18,8.80994492]
[1765184584348,10.65157789,137.28,137.22,10.65157789]
[1765184584557,26.37288,137.27,137.22,10.65157789]
[1765184584726,37.02445789,137.27,137.22,10.65157789]
[1765184584919,10.65157789,137.25,137.2,26.96044189]
[1765184585124,10.65157789,137.25,137.2,34.24901029]
[1765184585326,8.16,137.24,137.22,10.65157789]
[1765184585526,8.16,137.24,137.21,20.15152281]
[1765184585753,8.16,137.24,137.22,11.34157789]
[1765184586426,8.16,137.24,137.22,0.69]
[1765184586950,7.28438228,137.28,137.23,10.65157789]
[1765184587151,8.16,137.27,137.23,10.65157789]
[1765184587322,8.16,137.27,137.22,7.9775062]
[1765184587323,8.16,137.27,137.22,11.34157789]
[1765184587825,8.16,137.27,137.22,10.65157789]
[1765184588026,11.22157789,137.26,137.21,10.65157789]
[1765184588448,7.28597449,137.25,137.21,10.65157789]
[1765184588634,8.16,137.24,137.21,10.65157789]
[1765184589188,7.28597449,137.25,137.22,0.69]
[1765184589468,8.16,137.24,137.23,10.65157789]
[1765184589851,7.2850024,137.27,137.23,11.34157789]
[1765184590049,8.16,137.26,137.24,11.34157789]
[1765184590272,10.65157789,137.33,137.25,10.65157789]
[1765184590462,8.16,137.32,137.28,10.65157789]
[1765184590865,33.64791144,137.32,137.29,10.65157789]
[1765184591062,33.64791144,137.32,137.28,11.34157789]
[1765184591377,8.16,137.31,137.27,10.65157789]
[1765184591872,36.70948933,137.32,137.27,11.34157789]
[1765184592071,15.44368457,137.3,137.27,11.34157789]
[1765184592278,15.44368457,137.3,137.28,10.65157789]
[1765184592648,15.44368457,137.3,137.27,11.34157789]
[1765184592968,15.44368457,137.3,137.25,7.28575622]
[1765184592969,8.73,137.29,137.25,10.65157789]
[1765184593379,8.16,137.29,137.25,11.34157789]
[1765184594055,7.28438228,137.28,137.25,10.65157789]
[1765184594966,7.28407249,137.29,137.26,10.65157789]
[1765184595276,11.22157789,137.31,137.26,11.34157789]
[1765184595277,8.16,137.28,137.26,11.34157789]
[1765184595444,8.16,137.27,137.26,11.34157789]
[1765184597076,8.16,137.27,137.26,18.62702157]
[1765184597578,7.28371032,137.3,137.26,11.34157789]
[1765184597879,8.16,137.29,137.27,10.65157789]
[1765184598466,10.65157789,137.34,137.28,11.34157789]
[1765184598783,8.16,137.33,137.29,10.65157789]
[1765184599685,7.28226041,137.32,137.29,10.65157789]
[1765184599890,11.22157789,137.36,137.31,10.65157789]
[1765184600178,26.04677973,137.38,137.33,10.65157789]
[1765184600354,8.16,137.37,137.33,10.65157789]
[1765184600550,8.73,137.37,137.33,10.65157789]
[1765184600754,0.57,137.36,137.32,10.65157789]
[1765184600984,8.73,137.36,137.32,10.65157789]
[1765184601860,7.28066982,137.35,137.32,10.65157789]
[1765184602087,8.16,137.34,137.33,10.65157789]
[1765184602660,8.16,137.34,137.32,11.37157789]
[1765184602863,18.19777491,137.38,137.33,10.65157789]
[1765184603068,0.57,137.4,137.35,10.65157789]
[1765184603266,8.16,137.39,137.35,10.65157789]
[1765184603671,8.73,137.39,137.35,10.65157789]
[1765184603890,34.20529717,137.39,137.35,10.65157789]
[1765184604094,33.63529717,137.39,137.35,11.37157789]
[1765184604295,33.63529717,137.39,137.35,10.65157789]
[1765184604474,34.20529717,137.39,137.35,10.65157789]
[1765184604795,44.85687506,137.39,137.34,10.65157789]
[1765184605295,11.22157789,137.38,137.33,10.65157789]
[1765184605482,11.22157789,137.38,137.32,16.308864]
[1765184605483,11.22157789,137.38,137.32,26.96044189]
[1765184605796,7.27960981,137.37,137.32,26.96044189]
[1765184606001,8.14,137.36,137.32,26.96044189]
[1765184606197,8.14,137.36,137.33,10.65157789]
[1765184606507,25.47366448,137.4,137.35,10.65157789]
[1765184606798,8.14,137.39,137.36,10.65157789]
[1765184607096,8.14,137.38,137.36,10.65157789]
[1765184607485,7.27960981,137.37,137.35,10.65157789]
[1765184607687,8.14,137.36,137.35,10.65157789]
[1765184607887,7.27863842,137.39,137.35,11.37157789]
[1765184608079,8.14,137.38,137.35,11.37157789]
[1765184608286,18.79157789,137.38,137.33,11.37157789]
[1765184608606,19.36157789,137.38,137.33,10.65157789]
[1765184608813,19.36157789,137.38,137.33,11.37157789]
[1765184609510,7.27960981,137.37,137.34,10.65157789]